fUSD/lending_fUSD_20250115
["ID","MTS","AMOUNT","RATE_DAILY","PERIOD"]
[348993746,1736925049158,-500.0,0.00013976,2]
[348993747,1736925049168,-500.0,0.00013976,2]
[348993748,1736925049178,-500.0,0.00013976,2]
[348993749,1736925049187,-500.0,0.00013976,2]
[348993750,1736925049197,-500.0,0.00013976,2]
[348993751,1736925049208,-500.0,0.00013976,2]
[348993752,1736925049218,-500.0,0.00013976,2]
[348993753,1736925049229,-500.0,0.00013976,2]
[348993754,1736925049239,-500.0,0.00013976,2]
[348993755,1736925049249,-500.0,0.00013976,2]
[348993756,1736925049259,-500.0,0.00013976,2]
[348993757,1736925049269,-500.0,0.00013976,2]
[348993758,1736925049279,-500.0,0.00013976,2]
[348993759,1736925049289,-455.61521573,0.00013976,2]
[348993760,1736925049299,-500.0,0.00013976,2]
[348993761,1736925049309,-409.15,0.00013976,2]
[348993762,1736925049319,-173.17,0.00013977,2]
[348993763,1736925049328,-430.3,0.00013977,2]
[348993764,1736925049338,-238.4,0.00013977,2]
[348993765,1736925049348,-500.0,0.00013977,2]
[348993766,1736925049359,-268.40827109,0.00013977,2]
[348993767,1736925049368,-500.0,0.00013983,2]
[348993768,1736925049378,-566.21,0.00013983,2]
[348993769,1736925049389,-500.0,0.00014108,2]
[348993770,1736925049399,-500.0,0.00014126,2]
[348993771,1736925049409,-432.38116118,0.00014192,2]
[348993772,1736925049419,-262.734758,0.0001425,2]
[348993773,1736925049429,-231.861882,0.0001425,2]
[348993774,1736925049439,-500.0,0.0001425,2]
[348993775,1736925049449,-642.68,0.0001425,2]
[348993776,1736925049458,-500.0,0.0001425,2]
[348993777,1736925049469,-538.41,0.0001425,2]
[348993778,1736925049489,-500.0,0.0001425,2]
[348993779,1736925049502,-500.0,0.0001425,2]
[348993780,1736925049513,-233.34,0.0001425,2]
[348993781,1736925049523,-500.0,0.0001425,2]
[348993782,1736925049534,-500.0,0.0001425,2]
[348993783,1736925049544,-500.0,0.0001425,2]
[348993784,1736925049555,-299.67,0.0001425,2]
[348993785,1736925049566,-500.0,0.0001425,2]
[348993786,1736925049577,-238.66,0.0001425,2]
[348993787,1736925049588,-500.0,0.0001425,2]
[348993788,1736925049599,-500.0,0.0001425,2]
[348993789,1736925049609,-500.0,0.0001425,2]
[348993790,1736925049620,-500.0,0.0001425,2]
[348993791,1736925049631,-500.0,0.0001425,2]
[348993792,1736925049642,-500.0,0.0001425,2]
[348993793,1736925049653,-500.0,0.0001425,2]
[348993794,1736925049663,-500.0,0.00014251,2]
[348993795,1736925049675,-500.0,0.00014257,2]
[348993796,1736925049685,-566.21,0.00014257,2]
[348993797,1736925049696,-701.66,0.00014328,2]
[348993798,1736925049706,-287.61,0.00014338,2]
[348993799,1736925049717,-513.53808291,0.00014382,2]
[348993800,1736925049727,-500.0,0.000144,2]
[348993801,1736925049737,-170.30473411,0.00014403,2]
[348993802,1736925049747,-500.0,0.00014524,2]
[348993803,1736925049757,-500.0,0.00014524,2]
[348993804,1736925049767,-500.0,0.00014524,2]
[348993805,1736925049778,-500.0,0.00014524,2]
[348993806,1736925049788,-500.0,0.00014524,2]
[348993807,1736925049798,-500.0,0.00014524,2]
[348993808,1736925049808,-500.0,0.00014524,2]
[348993809,1736925049819,-500.0,0.00014524,2]
[348993810,1736925049829,-500.0,0.00014524,2]
[348993811,1736925049839,-500.0,0.00014524,2]
[348993812,1736925049850,-500.0,0.00014524,2]
[348993813,1736925049860,-500.0,0.00014524,2]
[348993814,1736925049871,-500.0,0.00014524,2]
[348993815,1736925049882,-500.0,0.00014524,2]
[348993816,1736925049892,-354.2,0.00014524,2]
[348993817,1736925049902,-500.0,0.00014525,2]
[348993818,1736925049913,-417.54,0.00014525,2]
[348993819,1736925049923,-500.0,0.00014531,2]
[348993820,1736925049938,-566.21,0.00014531,2]
[348993821,1736925049950,-587.0,0.00014637,2]
[348993822,1736925049961,-356.95,0.00014679,2]
[348993823,1736925049972,-212.88682162,0.000147,2]
[348993824,1736925049982,-500.0,0.00014798,2]
[348993825,1736925049992,-500.0,0.00014798,2]
[348993826,1736925050003,-500.0,0.00014798,2]
[348993827,1736925050014,-439.51,0.00014798,2]
[348993828,1736925050024,-278.66,0.00014798,2]
[348993829,1736925050034,-500.0,0.00014798,2]
[348993830,1736925050044,-500.0,0.00014798,2]
[348993831,1736925050054,-500.0,0.00014798,2]
[348993832,1736925050064,-500.0,0.00014798,2]
[348993833,1736925050075,-500.0,0.00014798,2]
[348993834,1736925050085,-500.0,0.00014798,2]
[348993835,1736925050095,-500.0,0.00014798,2]
[348993836,1736925050105,-500.0,0.00014798,2]
[348993837,1736925050115,-500.0,0.00014798,2]
[348993838,1736925050125,-122083.38013587,0.00014798,4]
[348993839,1736925050134,-293.80089591,0.00014798,2]
[348993840,1736925050144,-500.58955282,0.00014799,2]
[348993841,1736925050154,-162.55836261,0.00014799,2]
[348993842,1736925050163,-503.29145397,0.00014799,2]
[348993843,1736925050174,-501.36850009,0.00014799,2]
[348993844,1736925050184,-500.0,0.00014799,2]
[348993845,1736925050194,-500.0,0.00014799,2]
[348993846,1736925050204,-500.0,0.00014799,2]
[348993847,1736925050213,-500.0,0.00014799,2]
[348993848,1736925050223,-500.0,0.00014799,2]
[348993849,1736925050233,-500.0,0.00014799,2]
[348993850,1736925050243,-500.0,0.00014799,2]
[348993851,1736925050254,-500.0,0.00014799,2]
[348993852,1736925050263,-503.68962632,0.00014799,2]
[348993853,1736925050273,-500.0,0.00014799,2]
[348993854,1736925050282,-504.79404652,0.00014799,2]
[348993855,1736925050293,-500.0,0.00014799,2]
[348993856,1736925050304,-500.70486367,0.00014799,2]
[348993857,1736925050313,-500.0,0.00014799,2]
[348993858,1736925050323,-500.0,0.00014799,2]
[348993859,1736925050333,-504.84562988,0.00014799,2]
[348993860,1736925050343,-501.4238467,0.00014799,2]
[348993861,1736925050352,-500.0,0.00014799,2]
[348993862,1736925050362,-505.73534891,0.00014799,2]
[348993863,1736925050372,-506.15971135,0.00014799,2]
[348993864,1736925050382,-500.0,0.00014799,2]
[348993865,1736925050392,-501.21221852,0.00014799,2]
[348993866,1736925050403,-500.0,0.00014799,2]
[348993867,1736925050413,-500.0,0.00014799,2]
[348993868,1736925050423,-502.69461318,0.00014799,2]
[348993869,1736925050433,-500.0,0.00014799,2]
[348993870,1736925050443,-501.08349705,0.00014799,2]
[348993871,1736925050453,-258.44111925,0.00014799,2]
[348993872,1736925050464,-500.55754671,0.00014799,2]
[348993873,1736925050473,-500.0,0.00014799,2]
[348993874,1736925050483,-500.0,0.00014799,2]
[348993875,1736925050493,-500.0,0.00014799,2]
[348993876,1736925050502,-500.58037049,0.00014799,2]
[348993877,1736925050513,-500.0,0.00014799,2]
[348993878,1736925050522,-500.80722334,0.00014799,2]
[348993879,1736925050532,-500.0,0.00014799,2]
[348993880,1736925050542,-500.91494816,0.00014799,2]
[348993881,1736925050553,-500.92944026,0.00014799,2]
[348993882,1736925050563,-500.0,0.00014799,2]
[348993883,1736925050575,-500.33594404,0.00014799,2]
[348993884,1736925050585,-500.0,0.00014799,2]
[348993885,1736925050595,-500.23330004,0.00014799,2]
[348993886,1736925050606,-500.0,0.00014799,2]
[348993887,1736925050616,-500.80008402,0.00014799,2]
[348993888,1736925050626,-500.0,0.00014799,2]
[348993889,1736925050636,-500.0,0.00014799,2]
[348993890,1736925050644,-500.0,0.00014799,2]
[348993891,1736925050654,-500.0,0.00014799,2]
[348993892,1736925050664,-500.0,0.00014799,2]
[348993893,1736925050673,-500.29132403,0.00014799,2]
[348993894,1736925050683,-500.0,0.00014799,2]
[348993895,1736925050693,-158.56205164,0.00014799,2]
[348993896,1736925050703,-500.0,0.00014799,2]
[348993897,1736925050713,-500.0,0.00014799,2]
[348993898,1736925050722,-500.0,0.00014799,2]
[348993899,1736925050731,-500.0,0.00014799,2]
[348993900,1736925050741,-500.0,0.00014799,2]
[348993901,1736925050753,-500.29062932,0.00014799,2]
[348993902,1736925050763,-500.0,0.00014799,2]
[348993903,1736925050772,-500.0,0.00014799,2]
[348993904,1736925050782,-500.47975313,0.00014799,2]
[348993905,1736925050791,-500.0,0.00014799,2]
[348993906,1736925050801,-501.84810512,0.00014799,2]
[348993907,1736925050811,-500.0,0.00014799,2]
[348993908,1736925050820,-500.0,0.00014799,2]
[348993909,1736925050829,-500.0,0.00014799,2]
[348993910,1736925050838,-500.0,0.00014799,2]
[348993911,1736925050849,-500.0,0.00014799,2]
[348993912,1736925050859,-385.67967445,0.00014799,2]
[348993913,1736925050869,-500.0,0.00014799,2]
[348993914,1736925050881,-500.66175093,0.00014799,2]
[348993915,1736925050891,-506.23459738,0.00014799,2]
[348993916,1736925050903,-500.0,0.00014799,2]
[348993917,1736925050913,-500.0,0.00014799,2]
[348993918,1736925050921,-500.0,0.00014799,2]
[348993919,1736925050933,-500.0,0.00014799,2]
[348993920,1736925050942,-500.77175918,0.00014799,2]
[348993921,1736925050952,-502.27052209,0.00014799,2]
[348993922,1736925050963,-500.0,0.00014799,2]
[348993923,1736925050974,-500.0,0.00014799,2]
[348993924,1736925050983,-500.0,0.00014799,2]
[348993925,1736925050992,-500.0,0.00014799,2]
[348993926,1736925051002,-500.0,0.00014799,2]
[348993927,1736925051011,-544.33,0.00014799,2]
[348993928,1736925051021,-500.0,0.00014799,2]
[348993929,1736925051030,-305.76278006,0.00014799,2]
[348993930,1736925051039,-500.0,0.00014799,2]
[348993931,1736925051048,-500.0,0.00014799,2]
[348993932,1736925051058,-500.0,0.00014799,2]
[348993933,1736925051067,-500.0,0.00014799,2]
[348993934,1736925051076,-404.77501739,0.00014799,2]
[348993935,1736925051086,-500.0,0.00014799,2]
[348993936,1736925051096,-500.0,0.00014799,2]
[348993937,1736925051106,-460.33591213,0.00014799,2]
[348993938,1736925051116,-500.0,0.00014799,2]
[348993939,1736925051126,-500.0,0.00014799,2]
[348993940,1736925051137,-500.0,0.00014799,2]
[348993941,1736925051146,-500.0,0.00014799,2]
[348993942,1736925051156,-500.0,0.00014799,2]
[348993943,1736925051166,-500.0,0.00014799,2]
[348993944,1736925051176,-500.0,0.00014799,2]
[348993945,1736925051185,-500.0,0.00014799,2]
[348993946,1736925051197,-500.0,0.00014799,2]
[348993947,1736925051207,-507.36710628,0.00014799,2]
[348993948,1736925051217,-500.0,0.00014799,2]
[348993949,1736925051228,-500.0,0.00014799,2]
[348993950,1736925051240,-340.86116379,0.00014799,2]
[348993951,1736925051249,-500.0,0.00014799,2]
[348993952,1736925051259,-500.0,0.00014799,2]
[348993953,1736925051268,-500.0,0.00014799,2]
[348993954,1736925051279,-500.0,0.00014799,2]
[348993955,1736925051288,-500.0,0.00014799,2]
[348993956,1736925051296,-500.0,0.00014799,2]
[348993957,1736925051306,-500.0,0.00014799,2]
[348993958,1736925051315,-500.0,0.00014799,2]
[348993959,1736925051325,-500.0,0.00014799,2]
[348993960,1736925051335,-500.0,0.00014799,2]
[348993961,1736925051346,-500.0,0.00014799,2]
[348993962,1736925051355,-493.0792018,0.00014799,2]
[348993963,1736925051365,-500.0,0.00014799,2]
[348993964,1736925051375,-533.03277058,0.00014799,2]
[348993965,1736925051384,-500.0,0.00014799,2]
[348993966,1736925051394,-500.0,0.00014799,2]
[348993967,1736925051403,-644.94218952,0.00014799,2]
[348993968,1736925051412,-500.0,0.00014799,2]
[348993969,1736925051422,-500.0,0.00014799,2]
[348993970,1736925051431,-500.0,0.00014799,2]
[348993971,1736925051441,-500.0,0.00014799,2]
[348993972,1736925051450,-501.10804501,0.00014799,2]
[348993973,1736925051460,-501.99336724,0.00014799,2]
[348993974,1736925051469,-500.0,0.00014799,2]
[348993975,1736925051479,-500.25258243,0.00014799,2]
[348993976,1736925051488,-302.86800702,0.00014799,2]
[348993977,1736925051498,-501.18123824,0.00014799,2]
[348993978,1736925051507,-500.0,0.00014799,2]
[348993979,1736925051516,-500.0,0.00014799,2]
[348993980,1736925051526,-500.0,0.00014799,2]
[348993981,1736925051535,-500.0,0.00014799,2]
[348993982,1736925051545,-505.61974463,0.00014799,2]
[348993983,1736925051555,-500.0,0.00014799,2]
[348993984,1736925051563,-500.0,0.00014799,2]
[348993985,1736925051573,-500.0,0.00014799,2]
[348993986,1736925051583,-500.0,0.00014799,2]
[348993987,1736925051592,-500.0,0.00014799,2]
[348993988,1736925051602,-505.41338267,0.00014799,2]
[348993989,1736925051611,-516.13408918,0.00014799,2]
[348993990,1736925051621,-500.0,0.00014799,2]
[348993991,1736925051630,-500.0,0.00014799,2]
[348993992,1736925051640,-500.0,0.00014799,2]
[348993993,1736925051698,-500.0,0.00014799,2]
[348993994,1736925051708,-500.0,0.00014799,2]
[348993995,1736925051719,-500.0,0.00014799,2]
[348993996,1736925051731,-500.0,0.00014799,2]
[348993997,1736925051742,-501.65687519,0.00014799,2]
[348993998,1736925051753,-500.0,0.00014799,2]
[348993999,1736925051763,-600.0,0.00014799,2]
[348994000,1736925051774,-505.95289121,0.00014799,2]
[348994001,1736925051785,-500.0,0.00014799,2]
[348994002,1736925051795,-500.0,0.00014799,2]
[348994003,1736925051806,-509.11564155,0.00014799,2]
[348994004,1736925051816,-500.0,0.00014799,2]
[348994005,1736925051826,-501.08029924,0.00014799,2]
[348994006,1736925051835,-500.38367463,0.00014799,2]
[348994007,1736925051845,-500.25539017,0.00014799,2]
[348994008,1736925051855,-500.0,0.00014799,2]
[348994009,1736925051864,-500.0,0.00014799,2]
[348994010,1736925051874,-500.82939139,0.00014799,2]
[348994011,1736925051883,-500.59694933,0.00014799,2]
[348994012,1736925051894,-500.60813012,0.00014799,2]
[348994013,1736925051903,-549.42235933,0.00014799,2]
[348994014,1736925051914,-500.0,0.00014799,2]
[348994015,1736925051924,-500.0,0.00014799,2]
[348994016,1736925051937,-500.73779574,0.00014799,2]
[348994017,1736925051947,-500.0,0.00014799,2]
[348994018,1736925051958,-500.2772579,0.00014799,2]
[348994019,1736925051968,-501.47579866,0.00014799,2]
[348994020,1736925051979,-500.0,0.00014799,2]
[348994021,1736925051988,-602.69669738,0.00014799,2]
[348994022,1736925051998,-500.77569308,0.00014799,2]
[348994023,1736925052010,-503.72556544,0.00014799,2]
[348994024,1736925052019,-500.0,0.00014799,2]
[348994025,1736925052028,-501.19119439,0.00014799,2]
[348994026,1736925052037,-500.0,0.00014799,2]
[348994027,1736925052047,-500.0,0.00014799,2]
[348994028,1736925052055,-500.0,0.00014799,2]
[348994029,1736925052064,-500.0,0.00014799,2]
[348994030,1736925052075,-500.0,0.00014799,2]
[348994031,1736925052084,-501.66234556,0.00014799,2]
[348994032,1736925052094,-500.44343834,0.00014799,2]
[348994033,1736925052104,-510.72618277,0.00014799,2]
[348994034,1736925052115,-500.0,0.00014799,2]
[348994035,1736925052125,-505.18540217,0.00014799,2]
[348994036,1736925052136,-500.0,0.00014799,2]
[348994037,1736925052148,-500.0,0.00014799,2]
[348994038,1736925052157,-500.0,0.00014799,2]
[348994039,1736925052167,-500.0,0.00014799,2]
[348994040,1736925052177,-500.0,0.00014799,2]
[348994041,1736925052187,-270.26558185,0.00014799,2]
[348994042,1736925052197,-507.85095536,0.00014799,2]
[348994043,1736925052206,-501.08896531,0.00014799,2]
[348994044,1736925052217,-505.32866768,0.00014799,2]
[348994045,1736925052229,-500.0,0.00014799,2]
[348994046,1736925052239,-501.57969947,0.00014799,2]
[348994047,1736925052248,-501.2082641,0.00014799,2]
[348994048,1736925052258,-513.72447128,0.00014799,2]
[348994049,1736925052268,-502.55934322,0.00014799,2]
[348994050,1736925052278,-500.0,0.00014799,2]
[348994051,1736925052287,-500.52801978,0.00014799,2]
[348994052,1736925052301,-500.0,0.00014799,2]
[348994053,1736925052310,-500.0,0.00014799,2]
[348994054,1736925052320,-500.0,0.00014799,2]
[348994055,1736925052329,-500.0,0.00014799,2]
[348994056,1736925052339,-500.0,0.00014799,2]
[348994057,1736925052348,-500.0,0.00014799,2]
[348994058,1736925052357,-500.0,0.00014799,2]
[348994059,1736925052367,-500.0,0.00014799,2]
[348994060,1736925052376,-500.65239568,0.00014799,2]
[348994061,1736925052385,-503.00374794,0.00014799,2]
[348994062,1736925052395,-500.0,0.00014799,2]
[348994063,1736925052404,-500.0,0.00014799,2]
[348994064,1736925052413,-500.0,0.00014799,2]
[348994065,1736925052424,-500.0,0.00014799,2]
[348994066,1736925052434,-503.66392781,0.00014799,2]
[348994067,1736925052444,-500.0,0.00014799,2]
[348994068,1736925052454,-500.0,0.00014799,2]
[348994069,1736925052463,-500.0,0.00014799,2]
[348994070,1736925052473,-500.72060309,0.00014799,2]
[348994071,1736925052483,-502.39724644,0.00014799,2]
[348994072,1736925052493,-500.77836531,0.00014799,2]
[348994073,1736925052502,-507.39794348,0.00014799,2]
[348994074,1736925052512,-500.0,0.00014799,2]
[348994075,1736925052522,-500.0,0.00014799,2]
[348994076,1736925052531,-500.69653936,0.00014799,2]
[348994077,1736925052540,-500.0,0.00014799,2]
[348994078,1736925052550,-500.0,0.00014799,2]
[348994079,1736925052559,-500.0,0.00014799,2]
[348994080,1736925052570,-500.0,0.00014799,2]
[348994081,1736925052581,-500.0,0.00014799,2]
[348994082,1736925052590,-505.28668545,0.00014799,2]
[348994083,1736925052600,-500.0,0.00014799,2]
[348994084,1736925052610,-500.0,0.00014799,2]
[348994085,1736925052620,-500.0,0.00014799,2]
[348994086,1736925052629,-151.79342488,0.00014799,2]
[348994087,1736925052806,-348.20657512,0.00014799,2]
[348994088,1736925052815,-500.0,0.00014799,2]
[348994089,1736925052825,-500.0,0.00014799,2]
[348994090,1736925052835,-315.18504088,0.00014799,2]
[348994091,1736925052846,-187.50177785,0.00014799,2]
[348994092,1736925052855,-500.0,0.00014799,2]
[348994093,1736925052865,-500.0,0.00014799,2]
[348994094,1736925052874,-502.69150172,0.00014799,2]
[348994095,1736925052884,-503.74285368,0.00014799,2]
[348994096,1736925052893,-500.91724215,0.00014799,2]
[348994097,1736925052903,-500.57705198,0.00014799,2]
[348994098,1736925052913,-500.0,0.00014799,2]
[348994099,1736925052924,-500.0,0.00014799,2]
[348994100,1736925052937,-500.0,0.00014799,2]
[348994101,1736925052947,-502.15095992,0.00014799,2]
[348994102,1736925052956,-502.63566222,0.00014799,2]
[348994103,1736925052966,-500.0,0.00014799,2]
[348994104,1736925052975,-500.0,0.00014799,2]
[348994105,1736925052984,-500.0,0.00014799,2]
[348994106,1736925052997,-501.15187847,0.00014799,2]
[348994107,1736925053007,-504.60502055,0.00014799,2]
[348994108,1736925053017,-503.99745565,0.00014799,2]
[348994109,1736925053027,-500.0,0.00014799,2]
[348994110,1736925053036,-500.84384395,0.00014799,2]
[348994111,1736925053048,-503.22865338,0.00014799,2]
[348994112,1736925053057,-500.0,0.00014799,2]
[348994113,1736925053067,-500.0,0.00014799,2]
[348994114,1736925053076,-501.68009115,0.00014799,2]
[348994115,1736925053084,-500.0,0.00014799,2]
[348994116,1736925053094,-545.54950891,0.00014799,2]
[348994117,1736925053103,-500.0,0.00014799,2]
[348994118,1736925053112,-503.4989078,0.00014799,2]
[348994119,1736925053122,-500.0,0.00014799,2]
[348994120,1736925053131,-502.07062061,0.00014799,2]
[348994121,1736925053140,-500.0,0.00014799,2]
[348994122,1736925053150,-504.19775238,0.00014799,2]
[348994123,1736925053159,-500.0,0.00014799,2]
[348994124,1736925053171,-502.97107101,0.00014799,2]
[348994125,1736925053180,-500.0,0.00014799,2]
[348994126,1736925053190,-500.0,0.00014799,2]
[348994127,1736925053199,-501.22326483,0.00014799,2]
[348994128,1736925053208,-506.68254641,0.00014799,2]
[348994129,1736925053218,-500.0,0.00014799,2]
[348994130,1736925053227,-500.84636095,0.00014799,2]
[348994131,1736925053237,-500.0,0.00014799,2]
[348994132,1736925053246,-500.0,0.00014799,2]
[348994133,1736925053255,-502.2286332,0.00014799,2]
[348994134,1736925053265,-511.4595488,0.00014799,2]
[348994135,1736925053276,-500.0,0.00014799,2]
[348994136,1736925053285,-506.08583606,0.00014799,2]
[348994137,1736925053295,-500.0,0.00014799,2]
[348994138,1736925053305,-500.0,0.00014799,2]
[348994139,1736925053315,-502.63878527,0.00014799,2]
[348994140,1736925053324,-500.0,0.00014799,2]
[348994141,1736925053333,-504.39845004,0.00014799,2]
[348994142,1736925053343,-500.0,0.00014799,2]
[348994143,1736925053353,-500.0,0.00014799,2]
[348994144,1736925053363,-500.0,0.00014799,2]
[348994145,1736925053373,-500.0,0.00014799,2]
[348994146,1736925053383,-500.7596434,0.00014799,2]
[348994147,1736925053392,-507.42651958,0.00014799,2]
[348994148,1736925053401,-502.83500415,0.00014799,2]
[348994149,1736925053410,-500.0,0.00014799,2]
[348994150,1736925053419,-500.0,0.00014799,2]
[348994151,1736925053429,-500.0,0.00014799,2]
[348994152,1736925053438,-501.5361144,0.00014799,2]
[348994153,1736925053448,-500.0,0.00014799,2]
[348994154,1736925053457,-500.0,0.00014799,2]
[348994155,1736925053467,-504.8189077,0.00014799,2]
[348994156,1736925053476,-500.39548995,0.00014799,2]
[348994157,1736925053486,-500.0,0.00014799,2]
[348994158,1736925053496,-500.0,0.00014799,2]
[348994159,1736925053505,-329.39542218,0.00014799,2]
[348994160,1736925053514,-500.0,0.00014799,2]
[348994161,1736925053524,-492.84151873,0.00014799,2]
[348994162,1736925053534,-500.0,0.00014799,2]
[348994163,1736925053543,-500.0,0.00014799,2]
[348994164,1736925053553,-504.25732713,0.00014799,2]
[348994165,1736925053563,-500.0,0.00014799,2]
[348994166,1736925053574,-206.69986658,0.00014799,2]
[348994167,1736925053583,-500.0,0.00014799,2]
[348994168,1736925053594,-504.48877791,0.00014799,2]
[348994169,1736925053603,-504.49344981,0.00014799,2]
[348994170,1736925053613,-500.0,0.00014799,2]
[348994171,1736925053622,-511.01517043,0.00014799,2]
[348994172,1736925053632,-506.42724978,0.00014799,2]
[348994173,1736925053642,-500.0,0.00014799,2]
[348994174,1736925053652,-258.76484879,0.00014799,2]
[348994175,1736925053661,-500.0,0.00014799,2]
[348994176,1736925053671,-500.0,0.00014799,2]
[348994177,1736925053681,-459.50789066,0.00014799,2]
[348994178,1736925053691,-501.83014146,0.00014799,2]
[348994179,1736925053701,-500.0,0.00014799,2]
[348994180,1736925053711,-500.0,0.00014799,2]
[348994181,1736925053721,-500.0,0.00014799,2]
[348994182,1736925053731,-507.6179432,0.00014799,2]
[348994183,1736925053740,-500.0,0.00014799,2]
[348994184,1736925053749,-500.0,0.00014799,2]
[348994185,1736925053759,-500.0,0.00014799,2]
[348994186,1736925053768,-500.0,0.00014799,2]
[348994187,1736925053777,-500.0,0.00014799,2]
[348994188,1736925053787,-500.0,0.00014799,2]
[348994189,1736925053796,-500.0,0.00014799,2]
[348994190,1736925053805,-500.0,0.00014799,2]
[348994191,1736925053815,-503.81028674,0.00014799,2]
[348994192,1736925053824,-630.12669063,0.00014799,2]
[348994193,1736925053833,-513.9382276,0.00014799,2]
[348994194,1736925053843,-500.0,0.00014799,2]
[348994195,1736925053852,-202.79248963,0.00014799,2]
[348994196,1736925053862,-500.0,0.00014799,2]
[348994197,1736925053871,-500.0,0.00014799,2]
[348994198,1736925053881,-500.0,0.00014799,2]
[348994199,1736925053891,-500.0,0.00014799,2]
[348994200,1736925053900,-500.0,0.00014799,2]
[348994201,1736925053910,-500.0,0.00014799,2]
[348994202,1736925053920,-503.81965015,0.00014799,2]
[348994203,1736925053933,-500.0,0.00014799,2]
[348994204,1736925053943,-502.55511124,0.00014799,2]
[348994205,1736925053952,-500.0,0.00014799,2]
[348994206,1736925053961,-500.0,0.00014799,2]
[348994207,1736925053970,-500.0,0.00014799,2]
[348994208,1736925053981,-610.81597187,0.00014799,2]
[348994209,1736925053991,-502.18317858,0.00014799,2]
[348994210,1736925054000,-500.0,0.00014799,2]
[348994211,1736925054012,-506.72588723,0.00014799,2]
[348994212,1736925054022,-500.0,0.00014799,2]
[348994213,1736925054032,-501.32868956,0.00014799,2]
[348994214,1736925054042,-500.0,0.00014799,2]
[348994215,1736925054053,-584.86505745,0.00014799,2]
[348994216,1736925054063,-500.0,0.00014799,2]
[348994217,1736925054073,-502.46430184,0.00014799,2]
[348994218,1736925054083,-500.0,0.00014799,2]
[348994219,1736925054095,-502.91881386,0.00014799,2]
[348994220,1736925054105,-635.6876136,0.00014799,2]
[348994221,1736925054116,-500.0,0.00014799,2]
[348994222,1736925054126,-500.0,0.00014799,2]
[348994223,1736925054138,-502.77021046,0.00014799,2]
[348994224,1736925054148,-500.0,0.00014799,2]
[348994225,1736925054159,-500.0,0.00014799,2]
[348994226,1736925054169,-503.73740045,0.00014799,2]
[348994227,1736925054179,-500.0,0.00014799,2]
[348994228,1736925054189,-505.27246082,0.00014799,2]
[348994229,1736925054200,-500.0,0.00014799,2]
[348994230,1736925054210,-503.72050867,0.00014799,2]
[348994231,1736925054222,-501.649893,0.00014799,2]
[348994232,1736925054231,-500.0,0.00014799,2]
[348994233,1736925054242,-500.0,0.00014799,2]
[348994234,1736925054252,-500.0,0.00014799,2]
[348994235,1736925054262,-500.0,0.00014799,2]
[348994236,1736925054273,-317.99652488,0.00014799,2]
[348994237,1736925054283,-500.0,0.00014799,2]
[348994238,1736925054293,-500.0,0.00014799,2]
[348994239,1736925054302,-500.0,0.00014799,2]
[348994240,1736925054312,-500.0,0.00014799,2]
[348994241,1736925054322,-500.0,0.00014799,2]
[348994242,1736925054331,-500.0,0.00014799,2]
[348994243,1736925054341,-507.10368767,0.00014799,2]
[348994244,1736925054351,-500.0,0.00014805,2]
[348994245,1736925054361,-566.21,0.00014805,2]